[Event "WYCC 2018 G18"]
[Site "Halkidiki"]
[Date "2018.10.24"]
[Round "6"]
[White "Injac, Teodora"]
[Black "Tejaswini, Sagar"]
[Result "1/2-1/2"]
[ECO "E97"]
[WhiteElo "2258"]
[BlackElo "2139"]
[Annotator "NA"]
[PlyCount "89"]
[EventDate "2018.10.20"]
[EventType "swiss"]
[EventCountry "GRE"]
[SourceTitle "playchess.com"]
[Source "ChessBase"]
[SourceQuality "1"]
[TimeControl "40/5400+30:1800+30"]

1. Nf3 {[%emt 0:00:00]} Nf6 {[%emt 0:00:00]} 2. c4 {[%emt 0:00:00]} g6 {[%emt 0:00:00]} 3. Nc3 {[%emt 0:00:00]} Bg7 {[%emt 0:00:00]} 4. e4 {[%emt 0:00:09]} d6 {[%emt 0:00:00]} 5. d4 {[%emt 0:00:06]} O-O {[%emt 0:00:00]} 6. Be2 {[%emt 0:00:07]} e5 {[%emt 0:00:04]} 7. O-O {[%emt 0:00:36]} Nc6 {[%emt 0:00:16]} 8. Be3 {[%emt 0:00:18]} Ng4 {[%emt 0:00:12]} 9. Bg5 {[%emt 0:00:06]} f6 {[%emt 0:00:04]} 10. Bh4 {[%emt 0:01:02]} g5 {[%emt 0:00:21]} 11. Bg3 {[%emt 0:01:59]} Nh6 {[%emt 0:00:47]} 12. dxe5 {[%emt 0:02:58]} fxe5 {[%emt 0:01:09]} 13. h3 {[%emt 0:09:25]} g4 {[%emt 0:07:42]} 14. hxg4 {[%emt 0:05:03]} Bxg4 {[%emt 0:02:18] LiveBook: 10 Games} 15. c5 {[%emt 0:11:50]} Bxf3 $14 {[%emt 0:12:41]} (15... dxc5 $11 16. Qd5+ Qxd5 17. Nxd5 Nd4 18. Nxd4 cxd4) 16. Bxf3 {[%emt 0:14:23]} Nd4 {[%emt 0:01:06]} 17. Be2 {[%emt 0:00:49]} dxc5 {[%emt 0:02:01]} 18. Bc4+ {[%emt 0:00:05]} Kh8 {[%emt 0:01:45]} 19. Qh5 {[%emt 0:01:56]} Qd6 {[%emt 0:01:27]} 20. Nb5 {[%emt 0:03:43]} Nxb5 {[%emt 0:03:10]} 21. Bxb5 {[%emt 0:00:02]} Qg6 {[%emt 0:03:47]} 22. Qxg6 {[%emt 0:06:57]} hxg6 {[%emt 0:00:05]} 23. Rac1 {[%emt 0:01:16]} c6 {[%emt 0:13:15]} 24. Be2 {[%emt 0:00:38]} Rad8 {[%emt 0:02:09]} 25. Rfd1 {[%emt 0:11:16]} Rd4 {[%emt 0:12:39]} 26. f3 {[%emt 0:12:18]} Rfd8 {[%emt 0:01:26]} 27. Bf2 {[%emt 0:01:59]} Rxd1+ {[%emt 0:00:14]} 28. Rxd1 {[%emt 0:00:04]} Rxd1+ {[%emt 0:00:11]} 29. Bxd1 {[%emt 0:00:00]} Bf8 {[%emt 0:00:45]} 30. Bb3 {[%emt 0:00:26]} Kg7 {[%emt 0:01:19]} 31. Be6 {[%emt 0:03:23]} Nf7 {[%emt 0:01:41]} 32. Bg3 {[%emt 0:06:25]} Bd6 {[%emt 0:01:07]} 33. Bc8 {[%emt 0:00:25]} b6 {[%emt 0:00:17]} 34. Bd7 {[%emt 0:00:25]} Nd8 {[%emt 0:01:38]} 35. Bh4 {[%emt 0:00:14]} Bc7 {[%emt 0:01:02]} 36. Kf1 {[%emt 0:01:00]} Kf7 {[%emt 0:01:09]} 37. Bxd8 {[%emt 0:02:09]} Bxd8 {[%emt 0:00:05]} 38. Bxc6 {[%emt 0:00:04]} Bg5 {[%emt 0:00:58]} 39. Ke2 {[%emt 0:00:15]} Bc1 {[%emt 0:00:14]} 40. b3 {[%emt 0:00:00]} g5 {[%emt 0:00:00]} 41. Kd3 {[%emt 0:03:02]} Ke6 {[%emt 0:01:58]} 42. Kc4 {[%emt 0:04:34]} Kd6 {[%emt 0:00:09]} 43. Be8 {[%emt 0:02:20]} Bd2 {[%emt 0:00:21]} 44. Kb5 {[%emt 0:00:10]} Kc7 {[%emt 0:00:22]} 45. Bf7 {[%emt 0:01:52]} 1/2-1/2

[Event "WYCC 2018 G18"]
[Site "Halkidiki"]
[Date "2018.10.24"]
[Round "6"]
[White "Afonasieva, Anna"]
[Black "Janiashvili, Mariami"]
[Result "1-0"]
[ECO "D37"]
[WhiteElo "2245"]
[BlackElo "2081"]
[Annotator "NA"]
[PlyCount "45"]
[EventDate "2018.10.20"]
[EventType "swiss"]
[EventCountry "GRE"]
[SourceTitle "playchess.com"]
[Source "ChessBase"]
[SourceQuality "1"]
[TimeControl "40/5400+30:1800+30"]

1. d4 {[%emt 0:00:00]} d5 {[%emt 0:00:00]} 2. Nf3 {[%emt 0:00:00]} Nf6 {[%emt 0:00:00]} 3. c4 {[%emt 0:00:00]} e6 {[%emt 0:00:00]} 4. Nc3 {[%emt 0:00:12]} dxc4 {[%emt 0:00:11]} 5. g3 {[%emt 0:02:48]} Bb4 {[%emt 0:05:35]} 6. Bg2 {[%emt 0:03:39]} Nc6 {[%emt 0:03:44]} 7. O-O {[%emt 0:01:57]} Rb8 {[%emt 0:05:01]} 8. e3 {[%emt 0:03:57]} O-O {[%emt 0:04:53]} 9. Qc2 {[%emt 0:04:28]} b5 $15 {[%emt 0:04:50] LiveBook: 3 Partien} 10. Rd1 {[%emt 0:02:30]} Qe7 {[%emt 0:20:50]} 11. Ng5 {[%emt 0:11:47]} Na5 {[%emt 0:11:27]} 12. e4 {[%emt 0:03:56]} h6 {[%emt 0:09:11]} 13. e5 {[%emt 0:01:35]} hxg5 {[%emt 0:00:36]} 14. Bxg5 {[%emt 0:00:17]} Bxc3 {[%emt 0:10:56]} 15. bxc3 {[%emt 0:03:17]} b4 {[%emt 0:03:53]} 16. Qe2 {[%emt 0:04:22]} Re8 {[%emt 0:08:44]} 17. exf6 {[%emt 0:01:40]} gxf6 {[%emt 0:00:09]} 18. Bh4 {[%emt 0:04:19]} Rb5 {[%emt 0:05:21]} 19. cxb4 {[%emt 0:01:35]} Nb7 {[%emt 0:02:44]} 20. Bc6 {[%emt 0:00:28]} Nd6 {[%emt 0:00:31]} 21. Bxb5 {[%emt 0:00:34]} Nxb5 {[%emt 0:00:11]} 22. Qg4+ {[%emt 0:00:22]} Kf8 {[%emt 0:00:10]} 23. Qh5 {[%emt 0:00:09]} 1-0

[Event "WYCC 2018 G18"]
[Site "Halkidiki"]
[Date "2018.10.24"]
[Round "6"]
[White "Chitlange Sakshi"]
[Black "Cvitan, Ena"]
[Result "0-1"]
[ECO "D31"]
[WhiteElo "2237"]
[BlackElo "2034"]
[Annotator "NA"]
[PlyCount "102"]
[EventDate "2018.10.20"]
[EventType "swiss"]
[EventCountry "GRE"]
[SourceTitle "playchess.com"]
[Source "ChessBase"]
[SourceQuality "1"]
[TimeControl "40/5400+30:1800+30"]

1. d4 {[%emt 0:00:00]} d5 {[%emt 0:00:00]} 2. c4 {[%emt 0:00:00]} e6 {[%emt 0:00:00]} 3. Nc3 {[%emt 0:00:00]} a6 {[%emt 0:00:00]} 4. cxd5 {[%emt 0:00:00]} exd5 {[%emt 0:00:00]} 5. Nf3 {[%emt 0:00:00]} Nf6 {[%emt 0:00:16]} 6. Bg5 {[%emt 0:00:05]} Be6 {[%emt 0:00:31]} 7. e3 {[%emt 0:01:04]} Nbd7 {[%emt 0:00:56]} 8. Bd3 {[%emt 0:00:44]} Bd6 {[%emt 0:01:59]} 9. Qc2 {[%emt 0:01:57]} c6 {[%emt 0:05:33]} 10. Rb1 $11 {[%emt 0:04:23]} Qc7 {[%emt 0:06:46]} 11. Bh4 {[%emt 0:01:35]} h6 {[%emt 0:20:34]} 12. Bg3 {[%emt 0:02:54]} Bxg3 {[%emt 0:03:56]} 13. hxg3 {[%emt 0:00:01]} O-O {[%emt 0:00:30]} 14. O-O {[%emt 0:00:26]} Rac8 {[%emt 0:03:00]} 15. Rfc1 {[%emt 0:00:32]} Rfe8 {[%emt 0:01:47]} 16. Nd2 {[%emt 0:05:39]} Qd6 {[%emt 0:02:04]} 17. Na4 {[%emt 0:04:13]} h5 {[%emt 0:12:33]} 18. b4 {[%emt 0:05:13]} Ng4 {[%emt 0:08:53]} 19. Nf3 {[%emt 0:01:17]} Ndf6 {[%emt 0:02:44]} 20. Nc5 {[%emt 0:02:30]} Rc7 {[%emt 0:01:23]} 21. a4 {[%emt 0:13:27]} g6 {[%emt 0:03:50]} 22. Qd1 {[%emt 0:11:19]} Bc8 {[%emt 0:03:28]} 23. Rb2 {[%emt 0:03:28]} Ne4 {[%emt 0:02:05]} 24. b5 {[%emt 0:07:34]} axb5 {[%emt 0:00:27]} 25. axb5 {[%emt 0:00:06]} Rce7 {[%emt 0:02:32]} 26. bxc6 {[%emt 0:02:18]} bxc6 {[%emt 0:00:11]} 27. Ra2 {[%emt 0:13:32]} f6 {[%emt 0:02:38]} 28. Rac2 {[%emt 0:03:27]} Kg7 {[%emt 0:02:03]} 29. Nb3 {[%emt 0:04:46]} Bd7 {[%emt 0:02:55]} 30. Na5 {[%emt 0:02:07]} Nexf2 {[%emt 0:04:39]} 31. Rxf2 {[%emt 0:00:18]} Nxf2 {[%emt 0:00:11]} 32. Kxf2 {[%emt 0:00:13]} Rxe3 {[%emt 0:00:35]} 33. Nb7 {[%emt 0:07:34]} Qb4 {[%emt 0:02:08]} 34. Rb1 {[%emt 0:00:45]} Qa3 {[%emt 0:01:11]} 35. Nc5 {[%emt 0:01:26]} Qa2+ {[%emt 0:01:17]} 36. Kg1 {[%emt 0:01:02]} Bg4 {[%emt 0:00:26]} 37. Bf1 {[%emt 0:00:57]} R8e7 {[%emt 0:01:17]} 38. Ra1 {[%emt 0:00:43]} Qb2 {[%emt 0:00:08]} 39. Nd3 {[%emt 0:00:43]} Qb6 {[%emt 0:00:49]} 40. Nc5 {[%emt 0:00:00]} Qc7 {[%emt 0:00:00]} 41. Kf2 {[%emt 0:03:32]} g5 {[%emt 0:09:41]} 42. Na6 {[%emt 0:08:02]} Qd6 {[%emt 0:07:05]} 43. Qb1 {[%emt 0:03:09]} h4 {[%emt 0:06:50]} 44. Qb8 {[%emt 0:00:11]} hxg3+ {[%emt 0:00:30]} 45. Kg1 {[%emt 0:00:02]} Qxb8 {[%emt 0:02:47]} 46. Nxb8 {[%emt 0:00:02]} Rc3 {[%emt 0:02:25]} 47. Nd2 {[%emt 0:02:11]} Kf7 {[%emt 0:02:03]} 48. Ra6 {[%emt 0:02:31]} Rc2 {[%emt 0:01:04]} 49. Nf3 {[%emt 0:03:33]} Bxf3 {[%emt 0:00:36]} 50. gxf3 {[%emt 0:00:47]} Re1 {[%emt 0:00:12]} 51. Rxc6 {[%emt 0:00:42]} Rf2 {[%emt 0:00:55]} 0-1

[Event "WYCC 2018 G18"]
[Site "Halkidiki"]
[Date "2018.10.24"]
[Round "6"]
[White "Hrescak, Ivana"]
[Black "Zairbek kyzy, Begimay"]
[Result "0-1"]
[ECO "D35"]
[WhiteElo "2173"]
[BlackElo "1919"]
[Annotator "NA"]
[PlyCount "104"]
[EventDate "2018.10.20"]
[EventType "swiss"]
[EventCountry "GRE"]
[SourceTitle "playchess.com"]
[Source "ChessBase"]
[SourceQuality "1"]
[TimeControl "40/5400+30:1800+30"]

1. d4 {[%emt 0:00:00]} d5 {[%emt 0:00:00]} 2. c4 {[%emt 0:00:00]} e6 {[%emt 0:00:00]} 3. Nc3 {[%emt 0:00:00]} Nf6 {[%emt 0:00:00]} 4. cxd5 {[%emt 0:00:00]} exd5 {[%emt 0:00:00]} 5. Bg5 {[%emt 0:00:00] LiveBook: 7841 Games} Be7 {[%emt 0:00:00]} 6. e3 {[%emt 0:00:12]} Nbd7 {[%emt 0:00:05]} 7. Bd3 {[%emt 0:00:53]} c6 {[%emt 0:00:06]} 8. Qc2 {[%emt 0:02:13]} O-O {[%emt 0:00:10]} 9. Nge2 {[%emt 0:00:30]} Re8 {[%emt 0:00:36]} 10. O-O {[%emt 0:00:27]} Nf8 {[%emt 0:00:19]} 11. f3 {[%emt 0:00:41]} g6 {[%emt 0:05:30]} 12. Rad1 {[%emt 0:04:47]} Nh5 {[%emt 0:01:06]} 13. Bxe7 {[%emt 0:03:48]} Qxe7 $14 {[%emt 0:00:05]} 14. e4 {[%emt 0:00:17]} dxe4 {[%emt 0:00:15]} 15. fxe4 {[%emt 0:01:13]} Bg4 {[%emt 0:02:32]} 16. Rf2 {[%emt 0:06:13]} Ne6 {[%emt 0:05:16]} 17. Rdf1 {[%emt 0:06:21]} Rf8 {[%emt 0:00:30]} 18. h3 {[%emt 0:08:51]} Bxe2 {[%emt 0:00:43]} 19. Nxe2 {[%emt 0:00:06]} Qd6 {[%emt 0:06:49]} 20. e5 {[%emt 0:07:03]} Qd7 {[%emt 0:01:22]} 21. Qc3 {[%emt 0:08:02]} Rad8 {[%emt 0:01:20]} 22. Bc4 {[%emt 0:00:12]} Nhg7 {[%emt 0:04:41]} 23. Kh2 {[%emt 0:08:29]} b5 {[%emt 0:05:05]} 24. Bb3 {[%emt 0:00:43]} Nf5 {[%emt 0:05:30]} 25. g4 {[%emt 0:04:33]} Ne7 {[%emt 0:00:40]} 26. Qg3 {[%emt 0:08:26]} Nd5 {[%emt 0:01:34]} 27. h4 {[%emt 0:00:49]} c5 {[%emt 0:04:45]} 28. Rd1 {[%emt 0:05:04]} c4 {[%emt 0:01:10]} 29. Bc2 {[%emt 0:00:10]} Qe7 {[%emt 0:04:54]} 30. g5 {[%emt 0:06:35]} Ng7 {[%emt 0:00:50]} 31. Rf6 {[%emt 0:03:43]} Nh5 {[%emt 0:01:31]} 32. Qf3 {[%emt 0:00:10]} Rfe8 {[%emt 0:05:33]} 33. Be4 {[%emt 0:03:08]} Ndxf6 {[%emt 0:03:28]} 34. gxf6 {[%emt 0:00:32]} Nxf6 {[%emt 0:01:06]} 35. Bc6 {[%emt 0:00:54]} Nd7 {[%emt 0:00:38]} 36. Ng3 {[%emt 0:00:26]} Qxh4+ {[%emt 0:02:03]} 37. Kg2 {[%emt 0:00:02]} a6 {[%emt 0:03:05]} 38. Bxd7 {[%emt 0:10:10]} Rxd7 {[%emt 0:01:09]} 39. Ne4 {[%emt 0:00:04]} Re6 {[%emt 0:07:38]} 40. Nf6+ {[%emt 0:00:00]} Rxf6 {[%emt 0:00:00]} 41. exf6 {[%emt 0:04:06]} h5 {[%emt 0:01:04]} 42. Qa8+ {[%emt 0:07:37]} Kh7 {[%emt 0:00:41]} 43. Qe8 {[%emt 0:00:06]} Qg4+ {[%emt 0:01:45]} 44. Kf2 {[%emt 0:01:47]} g5 {[%emt 0:01:23]} 45. d5 {[%emt 0:02:43]} Rb7 {[%emt 0:02:18]} 46. Rh1 {[%emt 0:04:00]} h4 {[%emt 0:00:56]} 47. d6 {[%emt 0:01:03]} Rd7 {[%emt 0:04:06]} 48. Re1 {[%emt 0:05:22]} Qd4+ {[%emt 0:01:28]} 49. Kg2 {[%emt 0:01:40]} Qd5+ {[%emt 0:00:21]} 50. Kg1 {[%emt 0:01:02]} Rxd6 {[%emt 0:00:25]} 51. Qe7 {[%emt 0:02:35]} Qd4+ {[%emt 0:01:00]} 52. Kg2 {[%emt 0:00:15]} Rxf6 {[%emt 0:00:42]} 0-1

[Event "WYCC 2018 G18"]
[Site "Halkidiki"]
[Date "2018.10.24"]
[Round "6"]
[White "Arpita, Mukherjee"]
[Black "Kiolbasa, Oliwia"]
[Result "1/2-1/2"]
[ECO "C77"]
[WhiteElo "2147"]
[BlackElo "2254"]
[Annotator "NA"]
[PlyCount "172"]
[EventDate "2018.10.20"]
[EventType "swiss"]
[EventCountry "GRE"]
[SourceTitle "playchess.com"]
[Source "ChessBase"]
[SourceQuality "1"]
[TimeControl "40/5400+30:1800+30"]

1. e4 {[%emt 0:00:00]} e5 {[%emt 0:00:00]} 2. Nf3 {[%emt 0:00:00]} Nc6 {[%emt 0:00:00]} 3. Bb5 {[%emt 0:00:00]} a6 {[%emt 0:00:00]} 4. Ba4 {[%emt 0:00:05]} Nf6 {[%emt 0:00:14]} 5. d3 {[%emt 0:00:14]} b5 {[%emt 0:00:28]} 6. Bb3 {[%emt 0:00:07]} Be7 {[%emt 0:00:52]} 7. O-O {[%emt 0:00:17]} d6 {[%emt 0:00:14]} 8. a3 {[%emt 0:00:10]} O-O {[%emt 0:00:30]} 9. Nc3 {[%emt 0:00:05]} Bg4 {[%emt 0:02:50]} 10. Be3 {[%emt 0:02:25]} Nd4 {[%emt 0:00:09] C84: Closed Ruy Lopez: Unusual White 6th moves} 11. Bxd4 {[%emt 0:00:41]} exd4 {[%emt 0:00:09]} 12. Nd5 {[%emt 0:00:28]} Nd7 {[%emt 0:16:34]} (12... Nxd5 13. Bxd5 Rc8 14. a4 c6 15. Bb3 d5 16. h3 Bh5 17. axb5 axb5 18. exd5 {1-0 (47) Karjakin,S (2782)-Aronian,L (2764) Paris 2018}) 13. h3 {[%emt 0:08:51]} Bxf3 {[%emt 0:01:06]} 14. Nxe7+ {[%emt 0:00:55]} Qxe7 {[%emt 0:00:02]} 15. Qxf3 {[%emt 0:00:09] [#]} c5 $146 {[%emt 0:00:57]} ({Predecessor:} 15... a5 16. Qg3 a4 17. Bd5 Rab8 18. f4 {½-½ (44) Triapishko,O (2509)-Kovalev,V (2655) Ankara 2018}) 16. a4 {[%emt 0:06:08]} Nb6 {[%emt 0:10:14]} 17. a5 {[%emt 0:16:18]} Nd7 {[%emt 0:00:09]} 18. Qe2 {[%emt 0:01:01]} Kh8 {[%emt 0:01:29]} 19. Rae1 {[%emt 0:13:39]} Rae8 {[%emt 0:01:00]} 20. Qd2 {[%emt 0:00:57]} Qd8 {[%emt 0:03:35]} 21. f4 {[%emt 0:02:33]} Qc7 {[%emt 0:00:26]} 22. Re2 {[%emt 0:19:28]} Re7 {[%emt 0:01:54]} 23. Rfe1 {[%emt 0:07:51]} c4 {[%emt 0:06:41]} 24. dxc4 {[%emt 0:00:27]} bxc4 {[%emt 0:01:26]} 25. Ba2 {[%emt 0:00:04]} Qc5 {[%emt 0:01:32]} 26. Kh2 {[%emt 0:01:34]} Rb8 {[%emt 0:01:30]} 27. Rb1 {[%emt 0:04:27]} Nf6 {[%emt 0:07:04]} 28. e5 {[%emt 0:01:47]} dxe5 {[%emt 0:06:36]} 29. fxe5 {[%emt 0:00:05]} Rbe8 {[%emt 0:07:19]} 30. Rbe1 {[%emt 0:04:42]} Rxe5 {[%emt 0:03:26]} 31. Bxc4 {[%emt 0:02:36]} Rxe2 {[%emt 0:00:51]} 32. Bxe2 {[%emt 0:00:06]} Qe5+ {[%emt 0:07:00]} 33. Kg1 {[%emt 0:00:08]} h6 {[%emt 0:02:03]} 34. Qd3 {[%emt 0:04:29]} Qxa5 {[%emt 0:10:20]} 35. Rf1 {[%emt 0:00:24]} Qe5 {[%emt 0:01:38]} 36. Bf3 {[%emt 0:00:23]} a5 {[%emt 0:00:39]} 37. Rd1 {[%emt 0:00:07]} Rb8 {[%emt 0:00:48]} 38. Qxd4 {[%emt 0:00:48]} Qxd4+ {[%emt 0:00:07]} 39. Rxd4 {[%emt 0:00:04]} Rxb2 {[%emt 0:00:04]} 40. Ra4 {[%emt 0:00:00]} Rxc2 {[%emt 0:00:00]} 41. Rxa5 {[%emt 0:02:57]} Rd2 {[%emt 0:02:08]} 42. Kh2 {[%emt 0:00:49]} g6 {[%emt 0:01:00]} 43. Kg3 {[%emt 0:00:29]} Kg7 {[%emt 0:03:23]} 44. Ra4 {[%emt 0:02:19]} Nd7 {[%emt 0:00:44]} 45. Kf4 {[%emt 0:01:04]} Nc5 {[%emt 0:00:45]} 46. Ra7 {[%emt 0:00:25]} Kf6 {[%emt 0:00:36]} 47. Ra5 {[%emt 0:02:19]} Ne6+ {[%emt 0:01:55]} 48. Ke3 {[%emt 0:01:25]} Rc2 {[%emt 0:00:10]} 49. Kd3 {[%emt 0:00:50]} Rc5 {[%emt 0:04:24]} 50. Rxc5 {[%emt 0:06:46]} Nxc5+ {[%emt 0:00:08]} 51. Ke3 {[%emt 0:00:08]} Ke5 {[%emt 0:00:19]} 52. h4 {[%emt 0:00:34]} Nb3 {[%emt 0:00:29]} 53. g3 {[%emt 0:00:50]} Nd4 {[%emt 0:00:53]} 54. Bb7 {[%emt 0:00:18]} Ne6 {[%emt 0:02:51]} 55. Kf3 {[%emt 0:01:27]} Nc5 {[%emt 0:00:23]} 56. Bc6 {[%emt 0:00:38]} Kf5 {[%emt 0:00:33]} 57. Be8 {[%emt 0:00:50]} Ke6 {[%emt 0:00:08]} 58. Bb5 {[%emt 0:00:13]} f5 {[%emt 0:00:18]} 59. Be8 {[%emt 0:00:55]} Kf6 {[%emt 0:00:06]} 60. Bc6 {[%emt 0:00:04]} g5 {[%emt 0:00:19]} 61. hxg5+ {[%emt 0:00:28]} Kxg5 {[%emt 0:00:05]} 62. Bd5 {[%emt 0:00:19]} Nd3 {[%emt 0:00:25]} 63. Be6 {[%emt 0:00:29]} Ne5+ {[%emt 0:00:05]} 64. Kg2 $11 {[%emt 0:00:36]} Kg4 {[%emt 0:00:27]} 65. Bb3 {[%emt 0:00:05]} h5 {[%emt 0:00:11]} 66. Bd1+ {[%emt 0:00:07]} Kg5 {[%emt 0:00:06]} 67. Be2 {[%emt 0:00:06]} Nc6 {[%emt 0:00:14]} 68. Kh3 {[%emt 0:00:33]} Nd4 {[%emt 0:00:21]} 69. Bd1 {[%emt 0:00:04]} Nb5 {[%emt 0:00:04]} 70. Bf3 {[%emt 0:00:08]} Nc3 {[%emt 0:00:14]} 71. Bc6 {[%emt 0:00:15]} Ne4 {[%emt 0:00:22]} 72. Bb5 {[%emt 0:00:34]} Nf2+ {[%emt 0:00:07]} 73. Kg2 {[%emt 0:00:04]} Ng4 {[%emt 0:00:04]} 74. Kh3 {[%emt 0:00:43]} Ne5 {[%emt 0:00:15]} 75. Be2 {[%emt 0:00:15]} Ng6 {[%emt 0:00:05]} 76. Bd1 {[%emt 0:00:06]} h4 {[%emt 0:00:06]} 77. gxh4+ {[%emt 0:00:17]} Nxh4 {[%emt 0:00:05]} 78. Kg3 {[%emt 0:00:21]} Ng6 {[%emt 0:00:07]} 79. Bc2 {[%emt 0:00:09]} f4+ {[%emt 0:00:06]} 80. Kf2 {[%emt 0:00:04]} Ne5 {[%emt 0:00:13]} 81. Be4 {[%emt 0:00:05]} Kg4 {[%emt 0:00:55]} 82. Kg2 {[%emt 0:00:28]} Nc4 {[%emt 0:00:14]} 83. Bf3+ {[%emt 0:00:11]} Kf5 {[%emt 0:00:05]} 84. Kf2 {[%emt 0:00:12]} Ne5 {[%emt 0:00:06]} 85. Bb7 {[%emt 0:00:07]} f3 {[%emt 0:00:04]} 86. Bxf3 {[%emt 0:00:06]} Nxf3 {[%emt 0:00:04]} 1/2-1/2

[Event "WYCC 2018 G18"]
[Site "Halkidiki"]
[Date "2018.10.24"]
[Round "6"]
[White "Avetisyan, Mariam"]
[Black "Golsta, Madara"]
[Result "1-0"]
[ECO "B38"]
[WhiteElo "2049"]
[BlackElo "1938"]
[Annotator "NA"]
[PlyCount "73"]
[EventDate "2018.10.20"]
[EventType "swiss"]
[EventCountry "GRE"]
[SourceTitle "playchess.com"]
[Source "ChessBase"]
[SourceQuality "1"]
[TimeControl "40/5400+30:1800+30"]

1. e4 {[%emt 0:00:00]} c5 {[%emt 0:00:00]} 2. Ne2 {[%emt 0:00:00]} g6 {[%emt 0:00:29]} 3. d4 {[%emt 0:01:13]} cxd4 {[%emt 0:00:10]} 4. Nxd4 {[%emt 0:00:04]} Bg7 {[%emt 0:00:17]} 5. c4 {[%emt 0:00:25]} Nc6 {[%emt 0:00:42]} 6. Be3 {[%emt 0:00:06]} Nf6 {[%emt 0:00:40]} 7. Nc3 {[%emt 0:00:05]} O-O {[%emt 0:02:25]} 8. Be2 {[%emt 0:02:47]} Nxd4 {[%emt 0:01:13]} 9. Bxd4 {[%emt 0:00:17]} d6 {[%emt 0:00:12]} 10. Qd2 {[%emt 0:05:55]} Bd7 {[%emt 0:01:04]} 11. O-O {[%emt 0:00:16]} Bc6 {[%emt 0:00:15]} 12. f3 {[%emt 0:00:32]} a5 {[%emt 0:00:43]} 13. b3 {[%emt 0:00:43]} Nd7 {[%emt 0:00:42]} 14. Bf2 {[%emt 0:00:05]} Nc5 {[%emt 0:00:23]} 15. Rab1 {[%emt 0:00:12]} e6 {[%emt 0:02:40]} 16. Rfd1 {[%emt 0:10:07]} Be5 {[%emt 0:00:49]} 17. Bg3 {[%emt 0:24:16]} Qf6 {[%emt 0:12:39]} 18. Rbc1 {[%emt 0:02:38]} Rfd8 {[%emt 0:04:26]} 19. Qe3 {[%emt 0:09:25]} Bxc3 {[%emt 0:05:12]} 20. Qxc3 {[%emt 0:09:58]} e5 {[%emt 0:02:37]} 21. Rc2 {[%emt 0:04:31]} Ne6 {[%emt 0:03:33]} 22. Rcd2 {[%emt 0:01:50]} Qe7 {[%emt 0:00:12]} 23. Bf2 {[%emt 0:04:33]} Qc7 {[%emt 0:05:10]} 24. Qc1 {[%emt 0:01:44]} Nc5 {[%emt 0:11:55]} 25. Bh4 {[%emt 0:03:38]} f5 {[%emt 0:04:42]} 26. Bxd8 {[%emt 0:01:43]} Rxd8 {[%emt 0:00:11]} 27. exf5 {[%emt 0:00:03]} gxf5 {[%emt 0:00:22]} 28. Rb2 {[%emt 0:03:25]} Qg7 {[%emt 0:01:23]} 29. Kh1 {[%emt 0:02:18]} Ne6 {[%emt 0:01:11]} 30. Rbd2 {[%emt 0:01:54]} Nf4 {[%emt 0:01:27]} 31. Bf1 {[%emt 0:04:41]} Qg6 {[%emt 0:04:28]} 32. Qc3 {[%emt 0:00:35]} Rd7 {[%emt 0:02:58]} 33. c5 {[%emt 0:01:55]} e4 {[%emt 0:05:14]} 34. Rxd6 {[%emt 0:01:04]} Rxd6 {[%emt 0:00:09]} 35. Rxd6 {[%emt 0:00:09]} Qg5 {[%emt 0:00:06]} 36. Bc4+ {[%emt 0:02:24]} Bd5 {[%emt 0:00:14]} 37. Bxd5+ {[%emt 0:00:06]} 1-0

[Event "WYCC 2018 G18"]
[Site "Halkidiki"]
[Date "2018.10.24"]
[Round "6"]
[White "Tarini Goyal"]
[Black "Dimitrova, Aleksandra"]
[Result "1/2-1/2"]
[ECO "E04"]
[WhiteElo "2026"]
[BlackElo "2228"]
[Annotator "NA"]
[PlyCount "46"]
[EventDate "2018.10.20"]
[EventType "swiss"]
[EventCountry "GRE"]
[SourceTitle "playchess.com"]
[Source "ChessBase"]
[SourceQuality "1"]
[TimeControl "40/5400+30:1800+30"]

1. d4 {[%emt 0:00:00]} Nf6 {[%emt 0:00:00]} 2. c4 {[%emt 0:00:05]} e6 {[%emt 0:00:00]} 3. g3 {[%emt 0:00:47]} d5 {[%emt 0:00:00]} 4. Nf3 {[%emt 0:00:05]} dxc4 {[%emt 0:00:00]} 5. Bg2 {[%emt 0:00:10]} Bd7 {[%emt 0:00:00]} 6. Ne5 {[%emt 0:00:58]} Bc6 {[%emt 0:00:00]} 7. Nxc6 {[%emt 0:00:07]} Nxc6 {[%emt 0:00:04]} 8. e3 {[%emt 0:00:15]} Qd7 {[%emt 0:00:04]} 9. O-O {[%emt 0:00:26]} O-O-O {[%emt 0:00:10]} 10. Nc3 {[%emt 0:02:24]} h5 {[%emt 0:00:29]} 11. b3 {[%emt 0:01:05]} Bb4 {[%emt 0:00:38]} 12. Ne2 {[%emt 0:01:35]} e5 {[%emt 0:05:54]} 13. bxc4 {[%emt 0:09:27]} exd4 {[%emt 0:15:33]} 14. Rb1 {[%emt 0:29:21]} d3 {[%emt 0:08:50]} 15. Nd4 {[%emt 0:01:48]} Bc5 $18 {[%emt 0:16:25]} 16. Nxc6 {[%emt 0:14:57]} bxc6 {[%emt 0:00:30]} 17. Qa4 {[%emt 0:02:33]} Qe6 {[%emt 0:07:02]} 18. Bxc6 {[%emt 0:08:03]} Rd6 {[%emt 0:00:45]} 19. Bb7+ {[%emt 0:05:19]} Kd8 {[%emt 0:00:54]} 20. Bd5 {[%emt 0:01:48]} Qc8 {[%emt 0:04:37]} 21. Bb7 {[%emt 0:03:49]} Qe6 {[%emt 0:05:09]} 22. Bd5 {[%emt 0:01:18]} Qc8 {[%emt 0:00:15]} 23. Bb7 {[%emt 0:00:09]} Qe6 {[%emt 0:02:14]} 1/2-1/2